fUST/lending_fUST_20240727
["ID","MTS","AMOUNT","RATE_DAILY","PERIOD"]
[333285948,1722021044822,-500.0,0.00013698,2]
[333285949,1722021044831,-500.0,0.00013698,2]
[333285950,1722021044842,-500.0,0.00013698,2]
[333285951,1722021044852,-500.0,0.00013698,2]
[333285952,1722021044862,-500.0,0.00013698,2]
[333285953,1722021044873,-500.0,0.00013698,2]
[333285954,1722021044883,-500.0,0.00013698,2]
[333285955,1722021044893,-500.0,0.00013698,2]
[333285956,1722021044904,-1851.9,0.00013698,2]
[333285957,1722021044919,-500.0,0.00013698,2]
[333285958,1722021044928,-1851.9,0.00013698,2]
[333285959,1722021044938,-500.0,0.00013698,2]
[333285960,1722021044947,-500.0,0.00013698,2]
[333285961,1722021044958,-1852.11082409,0.00013698,2]
[333285962,1722021044968,-3000.0,0.00013699,2]
[333285963,1722021044978,-1017.398271,0.00013699,2]
[333285964,1722021044988,-150.112233,0.000139,2]
[333285965,1722021044998,-193249.02578157,0.00013972,5]
[333285966,1722021045007,-509.84548094,0.00013972,2]
[333285967,1722021045016,-186.77593733,0.00013972,2]
[333285968,1722021045026,-511.62744072,0.00013972,2]
[333285969,1722021045036,-500.0,0.00013972,2]
[333285970,1722021045046,-500.0,0.00013972,2]
[333285971,1722021045055,-500.0,0.00013972,2]
[333285972,1722021045064,-500.0,0.00013972,2]
[333285973,1722021045074,-500.0,0.00013972,2]
[333285974,1722021045084,-500.0,0.00013972,2]
[333285975,1722021045098,-500.0,0.00013972,2]
[333285976,1722021045107,-500.0,0.00013972,2]
[333285977,1722021045117,-311.68968242,0.00013972,2]
[333285978,1722021045127,-748.99,0.00013972,2]
[333285979,1722021045137,-500.0,0.00013972,2]
[333285980,1722021045148,-500.0,0.00013972,2]
[333285981,1722021045158,-500.0,0.00013972,2]
[333285982,1722021045168,-500.0,0.00013972,2]
[333285983,1722021045177,-483.78754246,0.00013972,2]
[333285984,1722021045186,-500.0,0.00013972,2]
[333285985,1722021045195,-500.0,0.00013972,2]
[333285986,1722021045205,-500.0,0.00013972,2]
[333285987,1722021045214,-566.3,0.00013972,2]
[333285988,1722021045223,-417.85646683,0.00013972,2]
[333285989,1722021045233,-500.0,0.00013972,2]
[333285990,1722021045243,-758.63,0.00013972,2]
[333285991,1722021045254,-500.0,0.00013972,2]
[333285992,1722021045264,-527.21,0.00013972,2]
[333285993,1722021045274,-924.87,0.00013972,2]
[333285994,1722021045285,-500.0,0.00013972,2]
[333285995,1722021045299,-500.0,0.00013972,2]
[333285996,1722021045309,-500.0,0.00013972,2]
[333285997,1722021045321,-500.0,0.00013972,2]
[333285998,1722021045330,-500.0,0.00013972,2]
[333285999,1722021045339,-500.0,0.00013972,2]
[333286000,1722021045348,-506.49774557,0.00013972,2]
[333286001,1722021045357,-708.43,0.00013972,2]
[333286002,1722021045366,-501.66,0.00013972,2]
[333286003,1722021045375,-500.0,0.00013972,2]
[333286004,1722021045385,-500.0,0.00013972,2]
[333286005,1722021045394,-500.0,0.00013972,2]
[333286006,1722021045403,-500.0,0.00013972,2]
[333286007,1722021045413,-523.82,0.00013972,2]
[333286008,1722021045423,-500.0,0.00013972,2]
[333286009,1722021045433,-500.0,0.00013972,2]
[333286010,1722021045444,-500.0,0.00013972,2]
[333286011,1722021045456,-500.0,0.00013972,2]
[333286012,1722021045466,-500.0,0.00013972,2]
[333286014,1722021045475,-500.0,0.00013972,2]
[333286016,1722021045485,-500.0,0.00013972,2]
[333286018,1722021045495,-500.0,0.00013972,2]
[333286019,1722021045506,-500.0,0.00013972,2]
[333286020,1722021045516,-500.0,0.00013972,2]
[333286021,1722021045526,-500.0,0.00013972,2]
[333286022,1722021045536,-500.0,0.00013972,2]
[333286023,1722021045547,-500.0,0.00013972,2]
[333286024,1722021045556,-624.74,0.00013972,2]
[333286025,1722021045565,-500.0,0.00013972,2]
[333286026,1722021045576,-686.26,0.00013972,2]
[333286027,1722021045585,-500.0,0.00013972,2]
[333286028,1722021045598,-638.79,0.00013972,2]
[333286029,1722021045607,-801.28,0.00013972,2]
[333286030,1722021045619,-500.0,0.00013972,2]
[333286031,1722021045631,-500.0,0.00013972,2]
[333286032,1722021045642,-500.0,0.00013972,2]
[333286033,1722021045653,-500.0,0.00013972,2]
[333286034,1722021045662,-790.51,0.00013972,2]
[333286035,1722021045672,-534.09194232,0.00013972,2]
[333286036,1722021045681,-500.0,0.00013972,2]
[333286038,1722021045691,-500.0,0.00013972,2]
[333286039,1722021045700,-938.27,0.00013972,2]
[333286040,1722021045709,-500.0,0.00013972,2]
[333286041,1722021045719,-500.0,0.00013972,2]
[333286042,1722021045728,-500.0,0.00013972,2]
[333286043,1722021045738,-500.0,0.00013972,2]
[333286044,1722021045748,-500.0,0.00013972,2]
[333286045,1722021045757,-500.0,0.00013972,2]
[333286046,1722021045768,-500.0,0.00013972,2]
[333286047,1722021045778,-500.0,0.00013972,2]
[333286048,1722021045788,-722.32,0.00013972,2]
[333286049,1722021045798,-701.42,0.00013972,2]
[333286050,1722021045809,-500.0,0.00013972,2]
[333286051,1722021045818,-500.0,0.00013972,2]
[333286052,1722021045830,-500.0,0.00013972,2]
[333286053,1722021045840,-510.83796348,0.00013972,2]
[333286054,1722021045851,-500.0,0.00013972,2]
[333286055,1722021045861,-1370.22,0.00013972,2]
[333286056,1722021045872,-518.23,0.00013972,2]
[333286057,1722021045881,-305.66822851,0.00013972,2]
[333286058,1722021045894,-500.0,0.00013972,2]
[333286059,1722021045905,-500.0,0.00013972,2]
[333286060,1722021045916,-500.0,0.00013972,2]
[333286061,1722021045930,-500.0,0.00013972,2]
[333286062,1722021045942,-500.0,0.00013972,2]
[333286063,1722021045952,-500.0,0.00013972,2]
[333286064,1722021045963,-233.52198101,0.00013972,2]
[333286065,1722021045973,-500.0,0.00013972,2]
[333286066,1722021045983,-500.0,0.00013972,2]
[333286067,1722021045993,-500.0,0.00013972,2]
[333286068,1722021046004,-500.0,0.00013972,2]
[333286069,1722021046015,-500.0,0.00013972,2]
[333286070,1722021046024,-1658.6,0.00013972,2]
[333286071,1722021046036,-500.0,0.00013972,2]
[333286072,1722021046048,-500.0,0.00013972,2]
[333286073,1722021046059,-655.58,0.00013972,2]
[333286074,1722021046070,-816.13,0.00013972,2]
[333286075,1722021046082,-500.0,0.00013972,2]
[333286076,1722021046094,-4162.21,0.00013972,2]
[333286077,1722021046104,-1087.77,0.00013972,2]
[333286078,1722021046116,-500.0,0.00013972,2]
[333286079,1722021046127,-721.71,0.00013972,2]
[333286080,1722021046138,-500.0,0.00013972,2]
[333286081,1722021046150,-500.0,0.00013972,2]
[333286082,1722021046162,-879.5,0.00013972,2]
[333286083,1722021046172,-639.12,0.00013972,2]
[333286084,1722021046182,-500.0,0.00013972,2]
[333286085,1722021046193,-500.0,0.00013972,2]
[333286086,1722021046203,-500.0,0.00013972,2]
[333286087,1722021046213,-500.0,0.00013972,2]
[333286088,1722021046223,-273.13823905,0.00013972,2]
[333286089,1722021046768,-331.53176095,0.00013972,2]
[333286090,1722021046778,-62.9042187,0.00013972,2]
[333286091,1722021046935,-500.0,0.00013698,2]
[333286092,1722021046946,-500.0,0.00013698,2]
[333286093,1722021046958,-279.67259686,0.00013698,2]
[333286094,1722021046968,-437.0957813,0.00013972,2]
[333286095,1722021046977,-500.0,0.00013972,2]
[333286096,1722021046986,-500.0,0.00013972,2]
[333286097,1722021046998,-4346.56,0.00013972,2]
[333286098,1722021047007,-507.21680693,0.00013972,2]
[333286099,1722021047017,-1534.89,0.00013972,2]
[333286100,1722021047027,-564.27,0.00013972,2]
[333286101,1722021047038,-511.09747774,0.00013972,2]
[333286102,1722021047048,-1736.85,0.00013972,2]
[333286103,1722021047058,-500.0,0.00013972,2]
[333286104,1722021047068,-500.0,0.00013972,2]
[333286105,1722021047078,-500.0,0.00013972,2]
[333286106,1722021047088,-429.51,0.00013972,2]
[333286107,1722021047098,-500.0,0.00013972,2]
[333286108,1722021047109,-568.17,0.00013972,2]
[333286109,1722021047119,-962.41,0.00013972,2]
[333286110,1722021047130,-500.0,0.00013972,2]
[333286111,1722021047140,-500.0,0.00013972,2]
[333286112,1722021047150,-730.01,0.00013972,2]
[333286113,1722021047160,-621.24,0.00013972,2]
[333286114,1722021047171,-500.0,0.00013972,2]
[333286115,1722021047180,-500.0,0.00013972,2]
[333286116,1722021047190,-616.32926765,0.00013972,2]
[333286117,1722021047200,-500.0,0.00013972,2]
[333286118,1722021047211,-500.0,0.00013972,2]
[333286119,1722021047220,-500.0,0.00013972,2]
[333286120,1722021047230,-500.0,0.00013972,2]
[333286121,1722021047239,-500.0,0.00013972,2]
[333286122,1722021047251,-507.37909551,0.00013972,2]
[333286123,1722021047262,-500.0,0.00013972,2]
[333286124,1722021047271,-500.0,0.00013972,2]
[333286125,1722021047281,-500.0,0.00013972,2]
[333286126,1722021047296,-500.0,0.00013972,2]
[333286127,1722021047306,-500.0,0.00013972,2]
[333286128,1722021047316,-500.0,0.00013972,2]
[333286129,1722021047326,-868.13,0.00013972,2]
[333286130,1722021047336,-500.0,0.00013972,2]
[333286131,1722021047346,-509.0,0.00013972,2]
[333286132,1722021047358,-1451.39,0.00013972,2]
[333286133,1722021047368,-500.0,0.00013972,2]
[333286134,1722021047378,-1372.24,0.00013972,2]
[333286135,1722021047388,-552.42,0.00013972,2]
[333286136,1722021047397,-500.0,0.00013972,2]
[333286137,1722021047408,-500.0,0.00013972,2]
[333286138,1722021047418,-500.0,0.00013972,2]
[333286139,1722021047430,-536.03,0.00013972,2]
[333286140,1722021047440,-500.0,0.00013972,2]
[333286141,1722021047452,-186.99875381,0.00013972,2]
[333286142,1722021047463,-500.0,0.00013972,2]
[333286143,1722021047472,-893.49,0.00013972,2]
[333286144,1722021047481,-1503.35,0.00013972,2]
[333286145,1722021047491,-2881.37,0.00013972,2]
[333286146,1722021047502,-500.0,0.00013972,2]
[333286147,1722021047512,-3650.34,0.00013972,2]
[333286148,1722021047523,-500.0,0.00013972,2]
[333286149,1722021047533,-500.0,0.00013972,2]
[333286150,1722021047544,-500.0,0.00013972,2]
[333286151,1722021047553,-500.0,0.00013972,2]
[333286152,1722021047562,-622.78,0.00013972,2]
[333286153,1722021047571,-500.0,0.00013972,2]
[333286154,1722021047580,-500.0,0.00013972,2]
[333286155,1722021047589,-500.0,0.00013972,2]
[333286156,1722021047600,-500.0,0.00013972,2]
[333286157,1722021047611,-542.63,0.00013972,2]
[333286158,1722021047623,-500.0,0.00013972,2]
[333286159,1722021047635,-788.61,0.00013972,2]
[333286160,1722021047646,-500.0,0.00013972,2]
[333286161,1722021047658,-610.62,0.00013972,2]
[333286162,1722021047668,-500.0,0.00013972,2]
[333286163,1722021047677,-500.0,0.00013972,2]
[333286165,1722021047687,-396.72760412,0.00013972,2]
[333286166,1722021047696,-500.0,0.00013972,2]
[333286167,1722021047705,-500.0,0.00013972,2]
[333286168,1722021047714,-500.0,0.00013972,2]
[333286169,1722021047724,-500.0,0.00013972,2]
[333286170,1722021047733,-216.21927671,0.00013972,2]
[333286171,1722021047742,-793.03,0.00013972,2]
[333286172,1722021047752,-500.0,0.00013972,2]
[333286173,1722021047762,-500.0,0.00013972,2]
[333286174,1722021047771,-500.0,0.00013972,2]
[333286175,1722021047781,-500.0,0.00013972,2]
[333286176,1722021047792,-546.52,0.00013972,2]
[333286177,1722021047802,-500.0,0.00013972,2]
[333286178,1722021047812,-940.06,0.00013972,2]
[333286179,1722021047822,-513.00394085,0.00013972,2]
[333286180,1722021047831,-779.31,0.00013972,2]
[333286181,1722021047840,-500.0,0.00013972,2]
[333286183,1722021047850,-504.354886,0.00013972,2]
[333286185,1722021047860,-500.0,0.00013972,2]
[333286186,1722021047870,-500.0,0.00013972,2]
[333286187,1722021047880,-500.0,0.00013972,2]
[333286188,1722021047889,-500.0,0.00013972,2]
[333286190,1722021047899,-519.81703122,0.00013972,2]
[333286192,1722021047910,-500.0,0.00013972,2]
[333286193,1722021047923,-500.0,0.00013972,2]
[333286194,1722021047934,-500.0,0.00013972,2]
[333286195,1722021047945,-500.0,0.00013972,2]
[333286196,1722021047957,-689.59,0.00013972,2]
[333286197,1722021047967,-500.0,0.00013972,2]
[333286198,1722021047976,-500.0,0.00013972,2]
[333286199,1722021047989,-1351.37,0.00013972,2]
[333286200,1722021048002,-500.0,0.00013972,2]
[333286201,1722021048013,-626.3132271,0.00013972,2]
[333286202,1722021048023,-500.0,0.00013972,2]
[333286203,1722021048034,-150.112233,0.00014,2]
[333286204,1722021048046,-359.8822361,0.00014076,2]
[333286205,1722021048055,-306.0,0.000141,2]
[333286206,1722021048065,-293.9878237,0.0001411,2]
[333286207,1722021048074,-206.6937542,0.0001411,2]
[333286208,1722021048083,-287.7685734,0.0001411,2]
[333286209,1722021048092,-293.9878237,0.0001411,2]
[333286210,1722021048102,-293.9878237,0.0001411,2]
[333286211,1722021048111,-707.42926098,0.00014146,2]
[333286212,1722021048121,-181.477014,0.0001421,2]
[333286213,1722021048131,-223.825356,0.0001421,2]
[333286214,1722021048140,-157.228433,0.0001421,2]
[333286215,1722021048151,-500.0,0.00014246,2]
[333286216,1722021048160,-500.0,0.00014246,2]
[333286217,1722021048170,-448.28821608,0.00014246,2]
[333286218,1722021048180,-500.0,0.00014246,2]
[333286219,1722021048314,-748.99,0.00014246,2]
[333286220,1722021048324,-500.0,0.00014246,2]
[333286221,1722021048334,-500.0,0.00014246,2]
[333286222,1722021048343,-500.0,0.00014246,2]
[333286223,1722021048352,-566.3,0.00014246,2]
[333286224,1722021048361,-151.0,0.00014246,2]
[333286225,1722021048371,-500.0,0.00014246,2]
[333286226,1722021048380,-758.63,0.00014246,2]
[333286227,1722021048389,-924.87,0.00014246,2]
[333286228,1722021048400,-233.62640771,0.00014246,2]
[333286229,1722021048409,-500.0,0.00014246,2]
[333286230,1722021048418,-500.0,0.00014246,2]
[333286231,1722021048428,-500.0,0.00014246,2]
[333286232,1722021048439,-500.0,0.00014246,2]
[333286233,1722021048451,-500.0,0.00014246,2]
[333286234,1722021048462,-708.43,0.00014246,2]
[333286235,1722021048472,-368.01,0.00014246,2]
[333286236,1722021048482,-500.0,0.00014246,2]
[333286237,1722021048492,-523.82,0.00014246,2]
[333286238,1722021048501,-151.0,0.00014246,2]
[333286239,1722021048511,-500.0,0.00014246,2]
[333286240,1722021048521,-500.0,0.00014246,2]
[333286241,1722021048531,-500.0,0.00014246,2]
[333286242,1722021048543,-500.0,0.00014246,2]
[333286243,1722021048555,-500.0,0.00014246,2]
[333286244,1722021048565,-500.0,0.00014246,2]
[333286245,1722021048574,-500.0,0.00014246,2]
[333286246,1722021048586,-500.0,0.00014246,2]
[333286247,1722021048596,-500.0,0.00014246,2]
[333286248,1722021048605,-624.74,0.00014246,2]
[333286249,1722021048614,-151.0,0.00014246,2]
[333286250,1722021048624,-510.54,0.00014246,2]
[333286251,1722021048633,-686.26,0.00014246,2]
[333286252,1722021048642,-500.0,0.00014246,2]
[333286253,1722021048651,-151.0,0.00014246,2]
[333286254,1722021048661,-151.0,0.00014246,2]
[333286255,1722021048670,-151.0,0.00014246,2]
[333286256,1722021048680,-638.79,0.00014246,2]
[333286257,1722021048689,-151.0,0.00014246,2]
[333286258,1722021048699,-801.28,0.00014246,2]
[333286259,1722021048709,-500.0,0.00014246,2]
[333286260,1722021048719,-500.0,0.00014246,2]
[333286261,1722021048729,-500.0,0.00014246,2]
[333286262,1722021048739,-588.29253368,0.00014246,2]
[333286263,1722021048750,-790.51,0.00014246,2]
[333286264,1722021048760,-151.0,0.00014246,2]
[333286265,1722021048771,-500.0,0.00014246,2]
[333286266,1722021048780,-500.0,0.00014246,2]
[333286267,1722021048791,-151.0,0.00014246,2]
[333286268,1722021048801,-938.27,0.00014246,2]
[333286269,1722021048811,-500.0,0.00014246,2]
[333286270,1722021048821,-500.0,0.00014246,2]
[333286271,1722021048831,-151.0,0.00014246,2]
[333286272,1722021048841,-500.0,0.00014246,2]
[333286273,1722021048851,-203.79306,0.00014246,2]
[333286274,1722021048861,-500.0,0.00014246,2]
[333286275,1722021048871,-500.0,0.00014246,2]
[333286276,1722021048881,-500.0,0.00014246,2]
[333286277,1722021048891,-500.0,0.00014246,2]
[333286278,1722021048900,-722.32,0.00014246,2]
[333286279,1722021048913,-701.42,0.00014246,2]
[333286280,1722021048924,-500.0,0.00014246,2]
[333286281,1722021048933,-512.18768842,0.00014246,2]
[333286282,1722021048943,-500.0,0.00014246,2]
[333286283,1722021048954,-1370.22,0.00014246,2]
[333286284,1722021048963,-518.23,0.00014246,2]
[333286285,1722021048973,-500.0,0.00014246,2]
[333286286,1722021048983,-500.0,0.00014246,2]
[333286287,1722021048994,-500.0,0.00014246,2]
[333286288,1722021049006,-579.390886,0.00014246,2]
[333286289,1722021049017,-151.0,0.00014246,2]
[333286290,1722021049027,-579.390886,0.00014246,2]
[333286291,1722021049036,-500.0,0.00014246,2]
[333286292,1722021049046,-500.0,0.00014246,2]
[333286293,1722021049056,-500.0,0.00014246,2]
[333286294,1722021049066,-279.53378509,0.00014246,2]
[333286295,1722021049076,-500.0,0.00014246,2]
[333286296,1722021049086,-1658.6,0.00014246,2]
[333286297,1722021049096,-502.08201003,0.00014246,2]
[333286298,1722021049106,-500.0,0.00014246,2]
[333286299,1722021049116,-655.58,0.00014246,2]
[333286300,1722021049126,-816.13,0.00014246,2]
[333286301,1722021049136,-4162.21,0.00014246,2]
[333286302,1722021049146,-151.0,0.00014246,2]
[333286303,1722021049157,-1087.77,0.00014246,2]
[333286304,1722021049168,-500.0,0.00014246,2]
[333286305,1722021049178,-721.71,0.00014246,2]
[333286306,1722021049187,-500.0,0.00014246,2]
[333286307,1722021049197,-500.0,0.00014246,2]
[333286308,1722021049207,-879.5,0.00014246,2]
[333286309,1722021049217,-546.196262,0.00014246,2]
[333286310,1722021049227,-639.12,0.00014246,2]
[333286311,1722021049237,-546.196262,0.00014246,2]
[333286312,1722021049247,-151.0,0.00014246,2]
[333286313,1722021049256,-156.479573,0.00014246,2]
[333286314,1722021049267,-500.0,0.00014246,2]
[333286315,1722021049281,-156.479573,0.00014246,2]
[333286316,1722021049291,-500.0,0.00014246,2]
[333286317,1722021049302,-500.0,0.00014246,2]
[333286318,1722021049312,-21.4892437,0.00014246,2]
[333286319,1722021049329,-650.6426893,0.00014246,2]
[333286320,1722021049339,-500.0,0.00014246,2]
[333286321,1722021049349,-650.09762592,0.00014246,2]
[333286322,1722021049513,-22.03430708,0.00014246,2]
[333286323,1722021049524,-604.67,0.00014246,2]
[333286324,1722021049534,-341.2061515,0.00014246,2]
[333286325,1722021049554,-158.7938485,0.00014246,2]
[333286326,1722021049565,-500.0,0.00014246,2]
[333286327,1722021049576,-517.14225602,0.00014246,2]
[333286328,1722021049586,-151.0,0.00014246,2]
[333286329,1722021049596,-4346.56,0.00014246,2]
[333286330,1722021049606,-826.50389548,0.00014246,2]
[333286331,1722021049619,-708.38610452,0.00014246,2]
[333286332,1722021049629,-564.27,0.00014246,2]
[333286333,1722021049639,-151.0,0.00014246,2]
[333286334,1722021049649,-1736.85,0.00014246,2]
[333286335,1722021049660,-500.0,0.00014246,2]
[333286336,1722021049670,-439.49389548,0.00014246,2]
[333286339,1722022017155,-270.73408855,9.999e-05,2]
[333286342,1722022147120,-523.1557351,9.999e-05,2]
[333286343,1722022147144,-351.21063257,9.999e-05,2]
[333286344,1722022147169,-200.0,0.0001,2]
[333286345,1722022147191,-188.91,0.00010959,2]
[333286346,1722022147213,-400.0,0.0001137,2]
[333286347,1722022147238,-159.731424,0.00012153,2]
[333286348,1722022147264,-159.731424,0.00012211,2]
[333286349,1722022147288,-159.731424,0.00012268,2]
[333286350,1722022147311,-159.731424,0.00012326,2]
[333286351,1722022147335,-159.731424,0.00012384,2]
[333286400,1722022234108,-159.731424,0.00012441,2]
[333286401,1722022234121,-159.731424,0.00012499,2]
[333286402,1722022234131,-159.731424,0.00012556,2]
[333286403,1722022234142,-66.68136372,0.00012614,2]
[333286418,1722022238199,-93.05006028,0.00012614,2]
[333286420,1722022238209,-159.731424,0.00012671,2]
[333286421,1722022238219,-159.731424,0.00012729,2]
[333286422,1722022238229,-159.731424,0.00012787,2]
[333286423,1722022238238,-153.0,0.00013178,2]
[333286425,1722022238248,-587.6850572,0.00013378,2]
[333286427,1722022238257,-157.334295,0.00013425,2]
[333286429,1722022238267,-1559.74814647,0.000135,2]
[333286430,1722022238277,-323.76635397,0.00013588,2]
[333286431,1722022238288,-308.82324714,0.00013588,2]
[333286432,1722022238299,-191.17675286,0.00013588,2]
[333286433,1722022238309,-636.6863349,0.00013598,2]
[333286434,1722022238320,-300.0,0.00013599,2]
[333286435,1722022238330,-2962.13706244,0.000136,2]
[333286436,1722022238342,-74627.42400848,0.000136,2]
[333286437,1722022238352,-273886.46331202,0.00013688,2]
[333286449,1722022240540,-11934.6113896,0.00013688,2]
[333286457,1722022243220,-5006.84576427,0.00013688,2]
[333286480,1722022263043,351.21063257,9.999e-05,2]
[333286486,1722022330548,182.98073957,0.0001212,2]
[333286487,1722022336989,276.0037646,9.999e-05,2]
[333286495,1722023232162,-227.87137559,9.999e-05,2]
[333286496,1722023246114,-911.0365393,9.999e-05,2]
[333286497,1722023246136,-182.98073957,9.999e-05,2]
[333286498,1722023246159,-154.69833824,9.999e-05,2]
[333286499,1722023246185,-166.666667,0.00012494,2]
[333286500,1722023246209,-166.666667,0.0001254,2]
[333286501,1722023246233,-166.666667,0.00012587,2]
[333286502,1722023246263,-166.666667,0.00012633,2]
[333286503,1722023246285,-74.09065751,0.0001268,2]
[333286504,1722023355103,-182.98073957,9.999e-05,2]
[333286505,1722023368173,161.46404,0.00012292,2]
[333286506,1722023368403,161.46404,0.00012335,2]
[333286507,1722023368608,161.46404,0.00012378,2]
[333286511,1722023432324,-161.46404,0.0001242,2]
[333286512,1722023432334,-161.46404,0.00012463,2]
[333286513,1722023432344,-161.46404,0.00012506,2]
[333286514,1722023432353,-161.46404,0.00012548,2]
[333286515,1722023432363,-161.46404,0.00012591,2]
[333286516,1722023432373,-161.46404,0.00012634,2]
[333286517,1722023432382,-161.46404,0.00012677,2]
[333286519,1722023432392,-161.46404,0.00012719,2]
[333286521,1722023432401,-161.46404,0.00012762,2]
[333286522,1722023432411,-161.46404,0.00012805,2]
[333286524,1722023432420,-161.46404,0.00012847,2]
[333286526,1722023432431,-161.46404,0.0001289,2]
[333286527,1722023432440,-161.46404,0.00012933,2]
[333286529,1722023432449,-3000.08012257,0.00013235,2]
[333286639,1722023438503,-1735.47177101,0.00013235,2]
[333286640,1722023438515,-367.53930495,0.00013331,2]
[333286641,1722023438527,-157.334295,0.00013425,2]
[333286642,1722023438538,-153.4394703,0.00013425,2]
[333286643,1722023438549,-283.29555968,0.00013598,2]
[333286644,1722023438561,-300.0,0.00013687,2]
[333286645,1722023438570,-37598.40811613,0.00013688,2]
[333286654,1722023440556,-13255.8229929,0.00013688,2]
[333286673,1722023443403,-50667.4679987,0.00013688,2]
[333286679,1722023446356,-520.430295,0.00013688,2]
[333286681,1722023446645,-4079.85030908,0.00013688,2]
[333286683,1722023446658,-1406.52748468,0.00013688,2]
[333286691,1722023467125,182.98073957,9.999e-05,2]
[333286692,1722023523628,182.98073957,0.0001212,2]
[333286693,1722024351161,-182.98073957,9.999e-05,2]
[333286694,1722024351187,-135.31259482,0.0001,2]
[333286695,1722024445105,-200.0,0.0001,2]
[333286696,1722024445128,-264.68740518,0.0001137,2]
[333286697,1722024445151,-367.53930495,0.00013184,2]
[333286698,1722024445173,-546.41063381,0.00013268,2]
[333286699,1722024557152,-182.98073957,9.999e-05,2]
[333286700,1722024592674,182.98073957,0.0001212,2]
[333286701,1722024602930,850.31,7.3e-05,2]
[333286709,1722024632498,-157.334295,0.00013425,2]
[333286710,1722024632510,-643.81336949,0.00013598,2]
[333286711,1722024632520,-380.57500142,0.00013598,2]
[333286712,1722024632529,-1434.61855914,0.00013598,2]
[333286719,1722024633144,309.71745359,0.0001212,2]
[333286776,1722024640583,-332.86897192,0.00013598,2]
[333286777,1722024640593,-300.0,0.00013685,2]
[333286778,1722024640604,-339.13102808,0.00013686,2]
[333286779,1722024640615,-2149.31548844,0.00013686,2]
[333286801,1722024643585,-499.78027732,0.00013686,2]
[333286803,1722024643599,-1791.89,0.00013686,2]
[333286804,1722024643612,-13364.40406266,0.00013686,2]
[333286805,1722024643622,-3471.1022387,0.00013688,2]
[333286806,1722024643634,-3278.19335814,0.00013688,2]
[333286807,1722024643646,-7838.3758244,0.00013688,2]
[333286815,1722024647650,-9036.8800584,0.00013688,2]
[333286816,1722024647887,-2922.47648655,0.00013688,2]
[333286818,1722024647900,-386534.22114481,0.00013688,2]
[333286819,1722024647910,-503.61433218,0.00013698,2]
[333286820,1722024647921,-407.67029083,0.00013698,2]
[333286821,1722024647931,-501.15674411,0.00013698,2]
[333286822,1722024647941,-559.81704241,0.00013698,2]
[333286823,1722024647951,-500.0,0.00013698,2]
[333286824,1722024647960,-500.0,0.00013698,2]
[333286825,1722024647971,-500.0,0.00013698,2]
[333286826,1722024647981,-532.16509311,0.00013698,2]
[333286827,1722024647991,-500.0,0.00013698,2]
[333286828,1722024648001,-500.0,0.00013698,2]
[333286829,1722024648013,-500.0,0.00013698,2]
[333286830,1722024648023,-500.0,0.00013698,2]
[333286831,1722024648042,-500.0,0.00013698,2]
[333286832,1722024648051,-500.0,0.00013698,2]
[333286833,1722024648061,-500.0,0.00013698,2]
[333286834,1722024648070,-151.0,0.00013698,2]